[Event "November 21 Early 2023"]
[Site "https://www.chess.com"]
[Date "2023.11.21"]
[Round "4"]
[White "Shuvalov, Evgenij"]
[Black "Molina, Roberto Junio Brito"]
[Result "0-1"]
[Board "67"]
[TimeControl "180+1"]
[WhiteFideId "4187237"]
[BlackFideId "2109450"]
[WhiteElo "2059"]
[BlackElo "2389"]
[WhiteTeam "FID"]
[BlackTeam "BRA"]
[WhiteClock "0:00:16"]
[BlackClock "0:00:39"]

1. d4 {[%clk 0:03:00]}  d5 {[%clk 0:02:58]} 2. c4 {[%clk 0:03:01]}  c6 {[%clk 0:02:57]} 3. Nc3 {[%clk 0:03:00]}  Nf6 {[%clk 0:02:56]} 4. e3 {[%clk 0:03:00]}  a6 {[%clk 0:02:54]} 5. Nf3 {[%clk 0:02:59]}  Bf5 {[%clk 0:02:53]} 6. cxd5 {[%clk 0:02:55]}  cxd5 {[%clk 0:02:53]} 7. Qb3 {[%clk 0:02:55]}  Ra7 {[%clk 0:02:52]} 8. Bd2 {[%clk 0:02:47]}  e6 {[%clk 0:02:40]} 9. Nh4 {[%clk 0:02:44]}  Bg6 {[%clk 0:02:37]} 10. Nxg6 {[%clk 0:02:44]}  hxg6 {[%clk 0:02:37]} 11. Bd3 {[%clk 0:02:44]}  Bd6 {[%clk 0:02:34]} 12. h3 {[%clk 0:02:43]}  Nbd7 {[%clk 0:02:30]} 13. Ne2 {[%clk 0:02:34]}  b5 {[%clk 0:02:28]} 14. Bb4 {[%clk 0:02:32]}  Bxb4+ {[%clk 0:02:26]} 15. Qxb4 {[%clk 0:02:33]}  Qe7 {[%clk 0:02:26]} 16. Qa5 {[%clk 0:02:28]}  Qd8 {[%clk 0:02:22]} 17. Qb4 {[%clk 0:02:27]}  Qe7 {[%clk 0:02:14]} 18. Qa5 {[%clk 0:02:27]}  O-O {[%clk 0:02:14]} 19. Rc1 {[%clk 0:02:25]}  Rb8 {[%clk 0:02:10]} 20. Rc6 {[%clk 0:02:19]}  Qd8 {[%clk 0:01:55]} 21. Qxd8+ {[%clk 0:02:16]}  Rxd8 {[%clk 0:01:56]} 22. Kd2 {[%clk 0:02:13]}  Kf8 {[%clk 0:01:52]} 23. Rhc1 {[%clk 0:02:13]}  Rb8 {[%clk 0:01:52]} 24. f4 {[%clk 0:01:50]}  Ke7 {[%clk 0:01:51]} 25. Ng1 {[%clk 0:01:50]}  Ne8 {[%clk 0:01:48]} 26. Nf3 {[%clk 0:01:48]}  Rbb7 {[%clk 0:01:42]} 27. g4 {[%clk 0:01:38]}  Nd6 {[%clk 0:01:41]} 28. b3 {[%clk 0:01:35]}  a5 {[%clk 0:01:38]} 29. Ne5 {[%clk 0:01:30]}  a4 {[%clk 0:01:34]} 30. h4 {[%clk 0:01:08]}  axb3 {[%clk 0:01:34]} 31. axb3 {[%clk 0:01:09]}  Nb8 {[%clk 0:01:23]} 32. R6c2 {[%clk 0:01:00]}  b4 {[%clk 0:01:14]} 33. h5 {[%clk 0:00:58]}  gxh5 {[%clk 0:01:13]} 34. gxh5 {[%clk 0:00:59]}  f6 {[%clk 0:01:10]} 35. Nc6+ {[%clk 0:00:56]}  Nxc6 {[%clk 0:01:10]} 36. Rxc6 {[%clk 0:00:57]}  Kd7 {[%clk 0:01:08]} 37. R6c5 {[%clk 0:00:55]}  Ra2+ {[%clk 0:01:05]} 38. R1c2 {[%clk 0:00:54]}  Rxc2+ {[%clk 0:01:04]} 39. Bxc2 {[%clk 0:00:55]}  f5 {[%clk 0:01:01]} 40. Ke2 {[%clk 0:00:52]}  Ne8 {[%clk 0:00:57]} 41. Kf2 {[%clk 0:00:51]}  Nf6 {[%clk 0:00:57]} 42. Bd3 {[%clk 0:00:47]}  Nxh5 {[%clk 0:00:57]} 43. Bb5+ {[%clk 0:00:47]}  Ke7 {[%clk 0:00:57]} 44. Bc6 {[%clk 0:00:44]}  Rc7 {[%clk 0:00:54]} 45. Ba4 {[%clk 0:00:36]}  Rxc5 {[%clk 0:00:53]} 46. dxc5 {[%clk 0:00:37]}  Nf6 {[%clk 0:00:53]} 47. Ke2 {[%clk 0:00:35]}  Ne4 {[%clk 0:00:53]} 48. c6 {[%clk 0:00:32]}  Kd6 {[%clk 0:00:52]} 49. Kd3 {[%clk 0:00:32]}  Nc5+ {[%clk 0:00:52]} 50. Kd4 {[%clk 0:00:28]}  Nxa4 {[%clk 0:00:38]} 51. bxa4 {[%clk 0:00:29]}  Kxc6 {[%clk 0:00:39]} 52. Kd3 {[%clk 0:00:21]}  Kb6 {[%clk 0:00:39]} 53. Kc2 {[%clk 0:00:19]}  Ka5 {[%clk 0:00:39]} 54. Kb3 {[%clk 0:00:16]}  g6 {[%clk 0:00:39]} 0-1

[Event "November 21 Early 2023"]
[Site "https://www.chess.com"]
[Date "2023.11.21"]
[Round "4"]
[White "ChessRespected"]
[Black "Sokolovsky, Yahli"]
[Result "0-1"]
[Board "77"]
[TimeControl "180+1"]
[BlackFideId "2820242"]
[WhiteElo "2537"]
[BlackElo "2389"]
[BlackTeam "ISR"]
[WhiteClock "0:00:00"]
[BlackClock "0:00:08"]

1. d4 {[%clk 0:03:00]}  d6 {[%clk 0:03:00]} 2. e4 {[%clk 0:02:59]}  g6 {[%clk 0:03:00]} 3. Nc3 {[%clk 0:02:59]}  Bg7 {[%clk 0:03:01]} 4. Be2 {[%clk 0:02:59]}  Nf6 {[%clk 0:03:00]} 5. g4 {[%clk 0:02:57]}  h5 {[%clk 0:02:58]} 6. g5 {[%clk 0:02:54]}  Nh7 {[%clk 0:02:59]} 7. Be3 {[%clk 0:02:51]}  e5 {[%clk 0:02:53]} 8. Qd2 {[%clk 0:02:48]}  Nc6 {[%clk 0:02:14]} 9. Bb5 {[%clk 0:02:35]}  O-O {[%clk 0:02:01]} 10. Bxc6 {[%clk 0:02:26]}  bxc6 {[%clk 0:01:33]} 11. dxe5 {[%clk 0:02:21]}  Bxe5 {[%clk 0:01:34]} 12. f4 {[%clk 0:02:16]}  Bg7 {[%clk 0:01:27]} 13. Bd4 {[%clk 0:02:07]}  f6 {[%clk 0:00:50]} 14. h4 {[%clk 0:02:04]}  fxg5 {[%clk 0:00:49]} 15. Bxg7 {[%clk 0:02:05]}  Kxg7 {[%clk 0:00:44]} 16. hxg5 {[%clk 0:02:05]}  Bg4 {[%clk 0:00:44]} 17. Nge2 {[%clk 0:01:52]}  Qe7 {[%clk 0:00:44]} 18. Rf1 {[%clk 0:01:38]}  Rf7 {[%clk 0:00:31]} 19. O-O-O {[%clk 0:01:38]}  Nf8 {[%clk 0:00:32]} 20. Rde1 {[%clk 0:01:33]}  Re8 {[%clk 0:00:27]} 21. Nd4 {[%clk 0:01:28]}  c5 {[%clk 0:00:25]} 22. f5 {[%clk 0:01:25]}  Qd7 {[%clk 0:00:18]} 23. f6+ {[%clk 0:01:21]}  Kh7 {[%clk 0:00:17]} 24. Nb3 {[%clk 0:01:18]}  Ne6 {[%clk 0:00:16]} 25. e5 {[%clk 0:01:16]}  c4 {[%clk 0:00:10]} 26. Nd4 {[%clk 0:01:15]}  dxe5 {[%clk 0:00:11]} 27. Nxe6 {[%clk 0:01:10]}  Qxe6 {[%clk 0:00:09]} 28. Re4 {[%clk 0:00:56]}  Bf5 {[%clk 0:00:08]} 29. Rh4 {[%clk 0:00:52]}  Rd7 {[%clk 0:00:08]} 30. Qh2 {[%clk 0:00:52]}  Kg8 {[%clk 0:00:07]} 31. a3 {[%clk 0:00:49]}  Rd4 {[%clk 0:00:06]} 32. Re1 {[%clk 0:00:43]}  Rxh4 {[%clk 0:00:06]} 33. Qxh4 {[%clk 0:00:44]}  e4 {[%clk 0:00:07]} 34. Qf4 {[%clk 0:00:43]}  Qe5 {[%clk 0:00:07]} 35. Qxe5 {[%clk 0:00:42]}  Rxe5 {[%clk 0:00:08]} 36. Nd1 {[%clk 0:00:42]}  Be6 {[%clk 0:00:06]} 37. Rg1 {[%clk 0:00:42]}  Bg4 {[%clk 0:00:06]} 38. Ne3 {[%clk 0:00:42]}  Rxg5 {[%clk 0:00:07]} 39. Nxc4 {[%clk 0:00:39]}  Kf7 {[%clk 0:00:08]} 40. Kd2 {[%clk 0:00:38]}  Kxf6 {[%clk 0:00:08]} 41. Ke3 {[%clk 0:00:39]}  Bf3 {[%clk 0:00:08]} 42. Rf1 {[%clk 0:00:37]}  h4 {[%clk 0:00:08]} 43. Nd2 {[%clk 0:00:36]}  Rf5 {[%clk 0:00:08]} 44. Rf2 {[%clk 0:00:24]}  h3 {[%clk 0:00:08]} 45. Rh2 {[%clk 0:00:23]}  Bg2 {[%clk 0:00:08]} 46. Nxe4+ {[%clk 0:00:23]}  Ke5 {[%clk 0:00:06]} 47. Nf2 {[%clk 0:00:23]}  Rf3+ {[%clk 0:00:06]} 48. Ke2 {[%clk 0:00:23]}  Kf4 {[%clk 0:00:07]} 49. Nd3+ {[%clk 0:00:21]}  Kg3 {[%clk 0:00:07]} 50. Rxh3+ {[%clk 0:00:19]}  Bxh3 {[%clk 0:00:07]} 51. Ne1 {[%clk 0:00:19]}  Rf2+ {[%clk 0:00:07]} 52. Ke3 {[%clk 0:00:18]}  Bf5 {[%clk 0:00:08]} 53. Nd3 {[%clk 0:00:15]}  Bxd3 {[%clk 0:00:08]} 54. cxd3 {[%clk 0:00:00]}  Rxb2 {[%clk 0:00:08]} 0-1

[Event "November 21 Early 2023"]
[Site "https://www.chess.com"]
[Date "2023.11.21"]
[Round "4"]
[White "Deng, Henry"]
[Black "Korchmar, Vasiliy"]
[Result "1-0"]
[Board "79"]
[TimeControl "180+1"]
[WhiteFideId "30965454"]
[BlackFideId "24131750"]
[WhiteElo "2534"]
[BlackElo "2372"]
[WhiteTeam "USA"]
[BlackTeam "RUS"]
[WhiteClock "0:00:21"]
[BlackClock "0:00:00"]

1. e4 {[%clk 0:03:00]}  c5 {[%clk 0:03:00]} 2. Nc3 {[%clk 0:02:59]}  d6 {[%clk 0:03:00]} 3. Bb5+ {[%clk 0:02:59]}  Bd7 {[%clk 0:02:57]} 4. Bxd7+ {[%clk 0:03:00]}  Nxd7 {[%clk 0:02:58]} 5. f4 {[%clk 0:02:54]}  Ngf6 {[%clk 0:02:57]} 6. Nf3 {[%clk 0:02:54]}  e6 {[%clk 0:02:56]} 7. O-O {[%clk 0:02:53]}  Be7 {[%clk 0:02:56]} 8. Qe2 {[%clk 0:02:49]}  O-O {[%clk 0:02:55]} 9. d3 {[%clk 0:02:46]}  a6 {[%clk 0:02:55]} 10. e5 {[%clk 0:02:40]}  Ng4 {[%clk 0:02:54]} 11. h3 {[%clk 0:02:37]}  Nh6 {[%clk 0:02:54]} 12. g4 {[%clk 0:02:37]}  Kh8 {[%clk 0:02:45]} 13. Ne4 {[%clk 0:02:34]}  d5 {[%clk 0:02:44]} 14. Ng3 {[%clk 0:02:28]}  d4 {[%clk 0:02:27]} 15. Kh1 {[%clk 0:02:16]}  Nb6 {[%clk 0:02:27]} 16. f5 {[%clk 0:02:10]}  Ng8 {[%clk 0:02:27]} 17. Ne4 {[%clk 0:02:07]}  Nd5 {[%clk 0:02:25]} 18. Bd2 {[%clk 0:01:47]}  Qd7 {[%clk 0:02:10]} 19. Nfg5 {[%clk 0:01:29]}  Bxg5 {[%clk 0:01:47]} 20. Nxg5 {[%clk 0:01:27]}  Rae8 {[%clk 0:01:39]} 21. Qe4 {[%clk 0:00:58]}  exf5 {[%clk 0:01:33]} 22. gxf5 {[%clk 0:00:58]}  Ngf6 {[%clk 0:01:24]} 23. Qe2 {[%clk 0:00:51]}  Qc6 {[%clk 0:01:23]} 24. Kh2 {[%clk 0:00:45]}  Nd7 {[%clk 0:01:15]} 25. e6 {[%clk 0:00:44]}  N7f6 {[%clk 0:01:02]} 26. Qg2 {[%clk 0:00:40]}  fxe6 {[%clk 0:00:57]} 27. fxe6 {[%clk 0:00:41]}  h6 {[%clk 0:00:48]} 28. Nf7+ {[%clk 0:00:40]}  Kh7 {[%clk 0:00:49]} 29. Rg1 {[%clk 0:00:40]}  Qc7+ {[%clk 0:00:37]} 30. Kh1 {[%clk 0:00:38]}  Rxf7 {[%clk 0:00:38]} 31. Qg6+ {[%clk 0:00:38]}  Kg8 {[%clk 0:00:38]} 32. exf7+ {[%clk 0:00:37]}  Qxf7 {[%clk 0:00:39]} 33. Bxh6 {[%clk 0:00:37]}  Nh5 {[%clk 0:00:19]} 34. Qxf7+ {[%clk 0:00:27]}  Kxf7 {[%clk 0:00:20]} 35. Bg5 {[%clk 0:00:27]}  Ne3 {[%clk 0:00:13]} 36. Bxe3 {[%clk 0:00:19]}  dxe3 {[%clk 0:00:13]} 37. Rae1 {[%clk 0:00:18]}  Nf4 {[%clk 0:00:10]} 38. Rgf1 {[%clk 0:00:18]}  g5 {[%clk 0:00:10]} 39. Rf3 {[%clk 0:00:18]}  e2 {[%clk 0:00:09]} 40. Kg1 {[%clk 0:00:18]}  Kg6 {[%clk 0:00:09]} 41. h4 {[%clk 0:00:18]}  Kf5 {[%clk 0:00:05]} 42. hxg5 {[%clk 0:00:19]}  Kxg5 {[%clk 0:00:05]} 43. Kf2 {[%clk 0:00:19]}  Kg4 {[%clk 0:00:03]} 44. Re3 {[%clk 0:00:19]}  Rh8 {[%clk 0:00:03]} 45. Rg1+ {[%clk 0:00:19]}  Kf5 {[%clk 0:00:03]} 46. Ke1 {[%clk 0:00:17]}  Rh2 {[%clk 0:00:03]} 47. Rf3 {[%clk 0:00:17]}  Ke5 {[%clk 0:00:02]} 48. Rg5+ {[%clk 0:00:17]}  Kf6 {[%clk 0:00:02]} 49. Rxf4+ {[%clk 0:00:16]}  Kxg5 {[%clk 0:00:02]} 50. Rf2 {[%clk 0:00:17]}  Rh1+ {[%clk 0:00:01]} 51. Kxe2 {[%clk 0:00:17]}  Rb1 {[%clk 0:00:01]} 52. b3 {[%clk 0:00:16]}  Rb2 {[%clk 0:00:01]} 53. Kd2 {[%clk 0:00:16]}  Rxa2 {[%clk 0:00:02]} 54. Rf7 {[%clk 0:00:17]}  b5 {[%clk 0:00:01]} 55. Rc7 {[%clk 0:00:17]}  c4 {[%clk 0:00:01]} 56. dxc4 {[%clk 0:00:18]}  bxc4 {[%clk 0:00:02]} 57. Rxc4 {[%clk 0:00:19]}  Kf6 {[%clk 0:00:02]} 58. Kc1 {[%clk 0:00:19]}  Ke6 {[%clk 0:00:02]} 59. Rc5 {[%clk 0:00:19]}  Ra1+ {[%clk 0:00:02]} 60. Kb2 {[%clk 0:00:19]}  Rg1 {[%clk 0:00:02]} 61. Rc6+ {[%clk 0:00:20]}  Kd7 {[%clk 0:00:02]} 62. Rxa6 {[%clk 0:00:20]}  Kc7 {[%clk 0:00:03]} 63. Ra4 {[%clk 0:00:20]}  Rg5 {[%clk 0:00:03]} 64. Rd4 {[%clk 0:00:21]}  Kb6 {[%clk 0:00:04]} 65. b4 {[%clk 0:00:21]}  Rh5 {[%clk 0:00:04]} 66. Kb3 {[%clk 0:00:21]}  Rh3+ {[%clk 0:00:04]} 67. c3 {[%clk 0:00:22]}  Rh5 {[%clk 0:00:05]} 68. Rd6+ {[%clk 0:00:22]}  Kc7 {[%clk 0:00:05]} 69. Ra6 {[%clk 0:00:21]}  Rg5 {[%clk 0:00:06]} 70. Ka4 {[%clk 0:00:21]}  Kb7 {[%clk 0:00:06]} 71. Rf6 {[%clk 0:00:21]}  Rh5 {[%clk 0:00:06]} 72. b5 {[%clk 0:00:20]}  Rh4+ {[%clk 0:00:05]} 73. Kb3 {[%clk 0:00:21]}  Rh1 {[%clk 0:00:04]} 74. c4 {[%clk 0:00:21]}  Rb1+ {[%clk 0:00:04]} 75. Kc3 {[%clk 0:00:22]}  Rc1+ {[%clk 0:00:03]} 76. Kb4 {[%clk 0:00:22]}  Rh1 {[%clk 0:00:03]} 77. Rf7+ {[%clk 0:00:22]}  Kb8 {[%clk 0:00:02]} 78. c5 {[%clk 0:00:22]}  Rh6 {[%clk 0:00:01]} 79. Ka5 {[%clk 0:00:22]}  Rg6 {[%clk 0:00:01]} 80. c6 {[%clk 0:00:23]}  Rg8 {[%clk 0:00:01]} 81. Kb6 {[%clk 0:00:21]}  Kc8 {[%clk 0:00:00]} 82. Ra7 {[%clk 0:00:21]} 1-0

[Event "November 21 Early 2023"]
[Site "https://www.chess.com"]
[Date "2023.11.21"]
[Round "4"]
[White "Ilkhomi, Jaloliddin"]
[Black "Baches Garcia, Guillermo"]
[Result "1-0"]
[Board "80"]
[TimeControl "180+1"]
[WhiteFideId "14700948"]
[BlackFideId "2209764"]
[WhiteElo "2054"]
[BlackElo "2534"]
[WhiteTeam "TJK"]
[BlackTeam "ESP"]
[WhiteClock "0:00:12"]
[BlackClock "0:00:08"]

1. Nf3 {[%clk 0:03:00]}  d5 {[%clk 0:03:00]} 2. d4 {[%clk 0:02:59]}  Nf6 {[%clk 0:03:00]} 3. Bf4 {[%clk 0:02:59]}  e6 {[%clk 0:03:00]} 4. e3 {[%clk 0:02:59]}  Bd6 {[%clk 0:03:01]} 5. Bg3 {[%clk 0:02:59]}  O-O {[%clk 0:03:01]} 6. Nbd2 {[%clk 0:03:00]}  c5 {[%clk 0:03:02]} 7. c3 {[%clk 0:03:00]}  Qc7 {[%clk 0:03:02]} 8. Ne5 {[%clk 0:02:58]}  Nc6 {[%clk 0:03:02]} 9. f4 {[%clk 0:02:57]}  Ne7 {[%clk 0:03:02]} 10. Bh4 {[%clk 0:02:55]}  Nd7 {[%clk 0:02:51]} 11. Bxe7 {[%clk 0:02:48]}  Bxe7 {[%clk 0:02:50]} 12. Bd3 {[%clk 0:02:48]}  f5 {[%clk 0:02:30]} 13. O-O {[%clk 0:02:38]}  Nxe5 {[%clk 0:02:24]} 14. fxe5 {[%clk 0:02:37]}  b5 {[%clk 0:02:22]} 15. g4 {[%clk 0:02:18]}  g6 {[%clk 0:02:19]} 16. gxf5 {[%clk 0:02:18]}  exf5 {[%clk 0:02:19]} 17. Qf3 {[%clk 0:02:05]}  Be6 {[%clk 0:02:13]} 18. Rab1 {[%clk 0:01:50]}  b4 {[%clk 0:02:09]} 19. Kh1 {[%clk 0:01:49]}  bxc3 {[%clk 0:02:02]} 20. bxc3 {[%clk 0:01:49]}  Rab8 {[%clk 0:02:02]} 21. Qg2 {[%clk 0:01:35]}  Rb6 {[%clk 0:01:48]} 22. Nf3 {[%clk 0:01:33]}  Rfb8 {[%clk 0:01:38]} 23. Rxb6 {[%clk 0:00:54]}  Rxb6 {[%clk 0:01:29]} 24. Ng5 {[%clk 0:00:54]}  Bxg5 {[%clk 0:01:23]} 25. Qxg5 {[%clk 0:00:55]}  cxd4 {[%clk 0:01:11]} 26. cxd4 {[%clk 0:00:52]}  Qc3 {[%clk 0:01:01]} 27. Bxf5 {[%clk 0:00:16]}  Bxf5 {[%clk 0:00:54]} 28. Rxf5 {[%clk 0:00:17]}  Rb1+ {[%clk 0:00:40]} 29. Kg2 {[%clk 0:00:17]}  Rb2+ {[%clk 0:00:26]} 30. Kg3 {[%clk 0:00:13]}  Qe1+ {[%clk 0:00:07]} 31. Kh3 {[%clk 0:00:13]}  Qe2 {[%clk 0:00:08]} 32. Qd8+ {[%clk 0:00:12]}  Kg7 {[%clk 0:00:08]} 33. Qf8# {[%clk 0:00:12]} 1-0

[Event "November 21 Early 2023"]
[Site "https://www.chess.com"]
[Date "2023.11.21"]
[Round "4"]
[White "Zomorrodian, Eilia"]
[Black "Nazari, Arad"]
[Result "1-0"]
[Board "81"]
[TimeControl "180+1"]
[WhiteFideId "12551805"]
[BlackFideId "12577324"]
[WhiteElo "2109"]
[BlackElo "2100"]
[WhiteTeam "CAN"]
[BlackTeam "IRI"]
[WhiteClock "0:00:37"]
[BlackClock "0:00:00"]

1. e4 {[%clk 0:02:56]}  c5 {[%clk 0:02:59]} 2. Nf3 {[%clk 0:02:56]}  d6 {[%clk 0:03:00]} 3. Bb5+ {[%clk 0:02:57]}  Nd7 {[%clk 0:03:00]} 4. O-O {[%clk 0:02:57]}  a6 {[%clk 0:03:00]} 5. Bd3 {[%clk 0:02:57]}  Ngf6 {[%clk 0:02:58]} 6. c3 {[%clk 0:02:58]}  e6 {[%clk 0:02:59]} 7. Bc2 {[%clk 0:02:59]}  Be7 {[%clk 0:02:59]} 8. d4 {[%clk 0:02:59]}  O-O {[%clk 0:02:57]} 9. Re1 {[%clk 0:02:58]}  e5 {[%clk 0:02:52]} 10. h3 {[%clk 0:02:57]}  b5 {[%clk 0:02:51]} 11. a4 {[%clk 0:02:57]}  Bb7 {[%clk 0:02:52]} 12. Na3 {[%clk 0:02:37]}  Qb6 {[%clk 0:02:45]} 13. d5 {[%clk 0:02:30]}  c4 {[%clk 0:02:26]} 14. Bg5 {[%clk 0:01:55]}  Rfe8 {[%clk 0:01:45]} 15. Nb1 {[%clk 0:01:40]}  Nc5 {[%clk 0:01:29]} 16. Nbd2 {[%clk 0:01:38]}  Qc7 {[%clk 0:01:11]} 17. a5 {[%clk 0:01:31]}  Bc8 {[%clk 0:01:09]} 18. Be3 {[%clk 0:01:20]}  Rb8 {[%clk 0:00:51]} 19. Nf1 {[%clk 0:01:16]}  Bd8 {[%clk 0:00:43]} 20. g4 {[%clk 0:01:11]}  h5 {[%clk 0:00:26]} 21. g5 {[%clk 0:01:04]}  Nfd7 {[%clk 0:00:26]} 22. Ng3 {[%clk 0:00:56]}  g6 {[%clk 0:00:26]} 23. Nh4 {[%clk 0:00:56]}  Nf8 {[%clk 0:00:26]} 24. Kh2 {[%clk 0:00:54]}  Qd7 {[%clk 0:00:26]} 25. Ngf5 {[%clk 0:00:47]}  gxf5 {[%clk 0:00:26]} 26. exf5 {[%clk 0:00:47]}  Nd3 {[%clk 0:00:16]} 27. Qxh5 {[%clk 0:00:44]}  Nxe1 {[%clk 0:00:15]} 28. Rxe1 {[%clk 0:00:44]}  f6 {[%clk 0:00:13]} 29. gxf6 {[%clk 0:00:37]}  Qh7 {[%clk 0:00:13]} 30. Rg1+ {[%clk 0:00:36]}  Kh8 {[%clk 0:00:00]} 31. Qxe8 {[%clk 0:00:37]} 1-0

[Event "November 21 Early 2023"]
[Site "https://www.chess.com"]
[Date "2023.11.21"]
[Round "4"]
[White "Csonka, Balazs"]
[Black "Malyi, Viacheslav"]
[Result "0-1"]
[Board "83"]
[TimeControl "180+1"]
[WhiteFideId "742910"]
[BlackFideId "14123983"]
[WhiteElo "2399"]
[BlackElo "2291"]
[WhiteTeam "HUN"]
[BlackTeam "UKR"]
[WhiteClock "0:00:00"]
[BlackClock "0:00:22"]

1. d4 {[%clk 0:03:00]}  Nf6 {[%clk 0:02:59]} 2. c4 {[%clk 0:03:00]}  g6 {[%clk 0:02:59]} 3. Nc3 {[%clk 0:03:00]}  d6 {[%clk 0:03:00]} 4. e4 {[%clk 0:02:58]}  Bg7 {[%clk 0:03:00]} 5. Be2 {[%clk 0:02:59]}  O-O {[%clk 0:03:01]} 6. Bg5 {[%clk 0:02:59]}  c5 {[%clk 0:03:01]} 7. d5 {[%clk 0:02:59]}  b5 {[%clk 0:03:00]} 8. cxb5 {[%clk 0:02:58]}  a6 {[%clk 0:03:01]} 9. a4 {[%clk 0:02:56]}  axb5 {[%clk 0:02:50]} 10. axb5 {[%clk 0:02:49]}  Rxa1 {[%clk 0:02:49]} 11. Qxa1 {[%clk 0:02:50]}  h6 {[%clk 0:02:49]} 12. Be3 {[%clk 0:02:32]}  e6 {[%clk 0:02:49]} 13. dxe6 {[%clk 0:02:32]}  Bxe6 {[%clk 0:02:50]} 14. Nf3 {[%clk 0:02:22]}  Re8 {[%clk 0:02:49]} 15. O-O {[%clk 0:02:15]}  d5 {[%clk 0:02:50]} 16. exd5 {[%clk 0:01:50]}  Nxd5 {[%clk 0:02:50]} 17. Bxc5 {[%clk 0:01:49]}  Qc8 {[%clk 0:02:41]} 18. Bd4 {[%clk 0:01:38]}  Nf4 {[%clk 0:02:28]} 19. Bxg7 {[%clk 0:01:33]}  Kxg7 {[%clk 0:02:25]} 20. Re1 {[%clk 0:01:18]}  Qb7 {[%clk 0:02:23]} 21. Bf1 {[%clk 0:00:47]}  Rd8 {[%clk 0:02:10]} 22. Ne4 {[%clk 0:00:37]}  Nd7 {[%clk 0:01:54]} 23. Nc5 {[%clk 0:00:21]}  Qb6 {[%clk 0:01:44]} 24. b4+ {[%clk 0:00:20]}  Kg8 {[%clk 0:01:42]} 25. Qd4 {[%clk 0:00:17]}  Nxc5 {[%clk 0:01:33]} 26. Qxf4 {[%clk 0:00:13]}  Nd3 {[%clk 0:01:20]} 27. Bxd3 {[%clk 0:00:13]}  Rxd3 {[%clk 0:01:21]} 28. Qxh6 {[%clk 0:00:13]}  Qxb5 {[%clk 0:01:07]} 29. Rxe6 {[%clk 0:00:04]}  fxe6 {[%clk 0:01:01]} 30. Qxg6+ {[%clk 0:00:03]}  Kf8 {[%clk 0:01:02]} 31. Qf6+ {[%clk 0:00:02]}  Kg8 {[%clk 0:01:00]} 32. h4 {[%clk 0:00:02]}  Qf5 {[%clk 0:00:55]} 33. Qe7 {[%clk 0:00:01]}  Rd1+ {[%clk 0:00:50]} 34. Kh2 {[%clk 0:00:02]}  Qf4+ {[%clk 0:00:50]} 35. g3 {[%clk 0:00:02]}  Qxf3 {[%clk 0:00:49]} 36. Qxe6+ {[%clk 0:00:03]}  Kg7 {[%clk 0:00:44]} 37. Qe7+ {[%clk 0:00:03]}  Kg8 {[%clk 0:00:43]} 38. Qe6+ {[%clk 0:00:02]}  Kf8 {[%clk 0:00:43]} 39. Qh6+ {[%clk 0:00:02]}  Ke7 {[%clk 0:00:42]} 40. Qg7+ {[%clk 0:00:02]}  Kd6 {[%clk 0:00:35]} 41. Qg6+ {[%clk 0:00:02]}  Kd5 {[%clk 0:00:28]} 42. Qg5+ {[%clk 0:00:01]}  Kd4 {[%clk 0:00:26]} 43. Qg7+ {[%clk 0:00:01]}  Kc4 {[%clk 0:00:24]} 44. Qc7+ {[%clk 0:00:00]}  Kb3 {[%clk 0:00:22]} 0-1

[Event "November 21 Early 2023"]
[Site "https://www.chess.com"]
[Date "2023.11.21"]
[Round "4"]
[White "Nikologorsky, Matfei"]
[Black "De Silva, L M S T"]
[Result "0-1"]
[Board "88"]
[TimeControl "180+1"]
[WhiteFideId "24102474"]
[BlackFideId "9953698"]
[WhiteElo "2153"]
[BlackElo "2372"]
[WhiteTeam "FID"]
[BlackTeam "SRI"]
[WhiteClock "0:00:14"]
[BlackClock "0:01:19"]

1. e4 {[%clk 0:03:00]}  g6 {[%clk 0:02:58]} 2. d4 {[%clk 0:02:59]}  Bg7 {[%clk 0:02:59]} 3. Nc3 {[%clk 0:02:58]}  d6 {[%clk 0:03:00]} 4. h4 {[%clk 0:02:57]}  h6 {[%clk 0:03:00]} 5. Be2 {[%clk 0:02:52]}  Nd7 {[%clk 0:03:00]} 6. g4 {[%clk 0:02:51]}  a6 {[%clk 0:02:59]} 7. f4 {[%clk 0:02:49]}  b5 {[%clk 0:02:59]} 8. Nf3 {[%clk 0:02:49]}  Bb7 {[%clk 0:02:59]} 9. a3 {[%clk 0:02:46]}  Ngf6 {[%clk 0:03:00]} 10. e5 {[%clk 0:02:42]}  Nxg4 {[%clk 0:02:56]} 11. h5 {[%clk 0:02:38]}  dxe5 {[%clk 0:02:46]} 12. fxe5 {[%clk 0:02:30]}  c5 {[%clk 0:02:43]} 13. hxg6 {[%clk 0:02:18]}  fxg6 {[%clk 0:02:31]} 14. Rg1 {[%clk 0:02:16]}  h5 {[%clk 0:02:29]} 15. Qd3 {[%clk 0:01:58]}  Nf8 {[%clk 0:02:17]} 16. dxc5 {[%clk 0:01:29]}  Qxd3 {[%clk 0:02:12]} 17. cxd3 {[%clk 0:01:30]}  Nxe5 {[%clk 0:02:10]} 18. Nxe5 {[%clk 0:01:30]}  Bxe5 {[%clk 0:02:11]} 19. Bg5 {[%clk 0:01:10]}  h4 {[%clk 0:02:07]} 20. Ne4 {[%clk 0:01:04]}  h3 {[%clk 0:02:03]} 21. O-O-O {[%clk 0:00:58]}  Ne6 {[%clk 0:02:00]} 22. Be3 {[%clk 0:00:44]}  Bf4 {[%clk 0:01:54]} 23. Kd2 {[%clk 0:00:25]}  Bxe4 {[%clk 0:01:47]} 24. dxe4 {[%clk 0:00:24]}  O-O-O+ {[%clk 0:01:45]} 25. Bd3 {[%clk 0:00:25]}  Nxc5 {[%clk 0:01:39]} 26. Bxf4 {[%clk 0:00:24]}  Nxd3 {[%clk 0:01:39]} 27. Ke3 {[%clk 0:00:19]}  Nxf4 {[%clk 0:01:34]} 28. Kxf4 {[%clk 0:00:20]}  Rxd1 {[%clk 0:01:31]} 29. Rxd1 {[%clk 0:00:19]}  h2 {[%clk 0:01:31]} 30. Rh1 {[%clk 0:00:20]}  Rh5 {[%clk 0:01:32]} 31. b4 {[%clk 0:00:17]}  Kd7 {[%clk 0:01:32]} 32. Kg4 {[%clk 0:00:17]}  Ke6 {[%clk 0:01:32]} 33. Kf4 {[%clk 0:00:17]}  Kf6 {[%clk 0:01:33]} 34. Kg4 {[%clk 0:00:15]}  Ke5 {[%clk 0:01:32]} 35. Kf3 {[%clk 0:00:16]}  Rh4 {[%clk 0:01:30]} 36. Kg3 {[%clk 0:00:15]}  g5 {[%clk 0:01:30]} 37. Kf3 {[%clk 0:00:16]}  Kd4 {[%clk 0:01:30]} 38. Kg3 {[%clk 0:00:14]}  Kxe4 {[%clk 0:01:29]} 39. Kg2 {[%clk 0:00:14]}  Kd4 {[%clk 0:01:23]} 40. Rd1+ {[%clk 0:00:14]}  Kc4 {[%clk 0:01:23]} 41. Kh1 {[%clk 0:00:14]}  Rh3 {[%clk 0:01:22]} 42. Re1 {[%clk 0:00:13]}  Rxa3 {[%clk 0:01:21]} 43. Kxh2 {[%clk 0:00:14]}  Kxb4 {[%clk 0:01:19]} 44. Rxe7 {[%clk 0:00:14]} 0-1